[Event "VII Totalizator Sportowy 2022"]
[Site "Bydgoszcz"]
[Date "2022.07.01"]
[Round "7.11"]
[White "Kowalski, Igor"]
[Black "Zebracki, Tomasz"]
[Result "0-1"]
[ECO "D45"]
[WhiteElo "2370"]
[BlackElo "2200"]
[Annotator "TA"]
[PlyCount "84"]
[EventDate "2022.06.25"]
[EventType "swiss"]
[EventCountry "POL"]
[SourceTitle "playchess.com"]
[Source "ChessBase"]
[SourceQuality "1"]
[TimeControl "40/5400+30:1800+30"]

{[%evp 21,83,0,5,0,0,0,0,-16,0,0,0,-18,14,15,0,12,0,-30,-15,-104,-105,-101,-83,-92,-53,-43,-40,-41,0,-4,0,-181,-20,-33,-7,-188,-37,-42,-41,-151,-129,-169,-139,-179,-160,-195,-185,-254,-183,-184,-28,-329,-283,-360,-337,-517,-77,-815,-783,-29961,-29950,-29989,-29990,-29999]} 1. d4 {[%emt 0:00:01]} d5 {[%emt 0:00:06]} 2. c4 {[%emt 0:00:04]} c6 {[%emt 0:00:05]} 3. Nc3 {[%emt 0:00:04]} Nf6 {[%emt 0:00:44]} 4. e3 {[%emt 0:00:05]} e6 {[%emt 0:02:53]} 5. Nf3 {[%emt 0:00:05]} Nbd7 {[%emt 0:00:08]} 6. Be2 {[%emt 0:00:05]} Bd6 {[%emt 0:02:02]} 7. O-O {[%emt 0:00:07]} O-O {[%emt 0:00:03]} 8. b3 {[%emt 0:00:04]} b6 {[%emt 0:01:20]} 9. Bb2 {[%emt 0:00:39]} Bb7 {[%emt 0:00:10]} 10. Bd3 {[%emt 0:00:40]} c5 {[%emt 0:20:39]} 11. cxd5 {[%emt 0:01:17]} exd5 {[%emt 0:02:09]} 12. Ne2 {[%emt 0:02:10] E14: Queen's Indian: Classical Variation (4 e3).} Re8 {[%emt 0:07:58]} 13. Rc1 {[%emt 0:02:10]} Rc8 {[%emt 0:00:22] [#]} 14. dxc5 $146 {[%emt 0:02:20] The position is equal.} ({Predecessor:} 14. Ng3 Ne4 15. dxc5 Bxg3 16. hxg3 bxc5 17. Nd2 Ndf6 18. Nxe4 Nxe4 19. Qg4 g6 20. f3 Nd6 21. Rxc5 {1-0 (64) Mchedlishvili,M (2656)-Polgar,J (2709) Konya 2012}) 14... bxc5 {[%emt 0:00:52]} 15. Bf5 {[%emt 0:00:42]} Rc7 {[%emt 0:12:47]} 16. Ng3 {[%emt 0:02:25]} Ne5 {[%emt 0:02:32]} 17. Nxe5 {[%emt 0:03:31]} Bxe5 {[%emt 0:00:10]} 18. Bxe5 {[%emt 0:00:15]} Rxe5 {[%emt 0:00:01]} 19. Qd2 {[%emt 0:00:35]} h5 {[%emt 0:02:07][%cal Bh7h5,Bh5h4][%mdl 32]} 20. f4 {[%emt 0:00:58]} (20. Bd3 $11) 20... Re8 $17 {[%emt 0:02:05]} 21. Rfe1 {[%emt 0:02:03][%cal Oe3e4]} h4 {[%emt 0:02:29]} 22. Nf1 {[%emt 0:00:29]} d4 {[%emt 0:08:48]} 23. exd4 {[%emt 0:02:26]} Rxe1 {[%emt 0:00:04]} 24. Rxe1 {[%emt 0:00:10]} cxd4 {[%emt 0:02:24]} 25. Rd1 $1 {[%emt 0:06:08]} Rc5 {[%emt 0:01:37]} 26. Bh3 {[%emt 0:04:50]} (26. Ne3 $1 $11) 26... Be4 $2 {[%emt 0:10:15]} (26... Ne4 $19 27. Qe3 Nc3) 27. Qb4 $11 {[%emt 0:01:31]} Rd5 $36 {[%emt 0:01:33][%mdl 2048] And now ...Qc7 would win. Black has the initiative.} 28. Nd2 $2 {[%emt 0:01:36]} (28. Rc1 $1 $11 {and White has nothing to worry.} Qa5 29. Rc8+ Kh7 30. Qd2) 28... a5 $2 {[%emt 0:05:37]} (28... Qc7 $1 $19 {[%cal Rc7c2] White must now prevent ...Qc2.} 29. Nc4 (29. Nxe4 $2 Nxe4 30. Qe1 Qxf4 $19) 29... Qxf4) 29. Qc4 $15 {[%emt 0:01:55]} Qb6 {[%emt 0:00:27]} 30. Qe2 {[%emt 0:09:29]} ({White should try} 30. Qc8+ $1 $15 Rd8 31. Nc4 Rxc8 32. Nxb6) 30... Bg6 {[%emt 0:05:42] Threatens to win with ...Bh5. Black is more active.} 31. Qf2 {[%emt 0:05:16]} Qb4 {[%emt 0:02:32]} 32. Rc1 {[%emt 0:26:49] Against Qc3} Rc5 {[%emt 0:00:14]} 33. Nc4 {[%emt 0:01:04]} d3 {[%emt 0:00:11]} 34. Rd1 {[%emt 0:01:52]} (34. Qe3 $142) 34... Rd5 {[%emt 0:02:13] aiming for ...Bh5.} 35. Qe3 {[%emt 0:03:30]} Qc3 $2 {[%emt 0:02:53]} (35... a4 $19 36. Ne5 Be4) 36. g4 $2 {[%emt 0:09:35][%mdl 8192]} (36. Rc1 $11 {and White stays safe.} Qd4 37. g3) 36... hxg3 $19 {[%emt 0:00:27]} 37. hxg3 {[%emt 0:00:01] [#]} Qc2 {[%emt 0:01:10][%csl LRa2,LRd1]} 38. Rd2 {[%emt 0:01:24] [#]} (38. Qe1 $142 Qxa2 39. Nd2) 38... Ne4 $2 {[%emt 0:00:26]} (38... Qb1+ $1 $19 {is more deadly.} 39. Bf1 Rh5) 39. f5 $2 {[%emt 0:05:04][%mdl 8192]} (39. Rxc2 $17 dxc2 40. f5 (40. Bf1 $2 Rd1 $19) 40... Rd1+ 41. Kh2) 39... Nxd2 {[%emt 0:00:49]} 40. fxg6 {[%emt 0:00:00]} Qd1+ {[%emt 0:00:00] Black mates.} 41. Kf2 {[%emt 0:03:36] [#]} Rf5+ $3 {[%emt 0:01:40][%mdl 512]} 42. Bxf5 {[%emt 0:00:05]} (42. Kg2 Qf1+) 42... Qf1# {Weighted Error Value: White=0.97/Black=0.61} 0-1

[Event "VII Totalizator Sportowy 2022"]
[Site "Bydgoszcz"]
[Date "2022.07.01"]
[Round "7.12"]
[White "Fiedorek, Michal"]
[Black "Paprocki, Antoni"]
[Result "0-1"]
[ECO "C95"]
[WhiteElo "2315"]
[BlackElo "1851"]
[Annotator "TA"]
[PlyCount "86"]
[EventDate "2022.06.25"]
[EventType "swiss"]
[EventCountry "POL"]
[SourceTitle "playchess.com"]
[Source "ChessBase"]
[SourceQuality "1"]
[TimeControl "40/5400+30:1800+30"]

{[%evp 21,86,32,35,8,43,29,29,28,33,27,33,14,58,46,66,58,59,41,59,19,41,5,23,15,72,75,68,58,79,29,146,158,148,132,133,127,155,108,264,88,162,47,30,20,23,31,200,195,302,-71,-65,-63,-70,-92,-77,-74,-79,-73,-78,-870,-858,-888,-877,-926,-917,-1032,-1000]} 1. e4 {[%emt 0:00:01]} e5 {[%emt 0:00:20]} 2. Nf3 {[%emt 0:00:05]} Nc6 {[%emt 0:00:06]} 3. Bb5 {[%emt 0:00:05]} a6 {[%emt 0:00:07]} 4. Ba4 {[%emt 0:00:04]} Nf6 {[%emt 0:00:06]} 5. O-O {[%emt 0:00:13]} Be7 {[%emt 0:00:09]} 6. Re1 {[%emt 0:00:19]} b5 {[%emt 0:00:13]} 7. Bb3 {[%emt 0:00:06]} d6 {[%emt 0:00:04]} 8. c3 {[%emt 0:00:21][%cal Bc2c3,Bc3c4][%mdl 32]} O-O {[%emt 0:00:19]} 9. h3 {[%emt 0:00:06]} Nb8 {[%emt 0:00:40]} 10. d4 {[%emt 0:00:33]} Nbd7 {[%emt 0:00:07][%cal Bb8d7,Bd7e5,Be5c6,Bc6d4][%mdl 32]} 11. c4 {[%emt 0:00:19]} c6 {[%emt 0:00:40]} 12. Qc2 {[%emt 0:00:17] C95: Closed Ruy Lopez: Breyer Variation with 10 d4.} h6 {[%emt 0:02:54]} (12... a5 $5 {[%cal Ra5a4]} 13. cxb5 cxb5 $14) 13. Nc3 {[%emt 0:03:03] [#]} b4 $146 {[%emt 0:00:52]} ({Predecessor:} 13... Re8 14. Ne2 Bf8 15. Ng3 c5 16. dxe5 Nxe5 17. Nxe5 dxe5 18. Be3 Qc7 19. Rac1 b4 {1-0 (62) Arizmendi Martinez,J (2511)-Krishna Teja,N (2383) El Prat de Llobregat 2019}) 14. Ne2 {[%emt 0:01:03][%cal Oc4c5] White has an edge.} c5 {[%emt 0:00:54]} 15. dxe5 {[%emt 0:02:40]} Nxe5 {[%emt 0:05:09]} 16. Nh2 {[%emt 0:06:46]} Nc6 {[%emt 0:09:11]} 17. Be3 {[%emt 0:03:37]} Re8 {[%emt 0:04:57]} 18. Rad1 {[%emt 0:01:37]} Qc7 {[%emt 0:01:18]} 19. Ng3 {[%emt 0:05:44]} Bf8 {[%emt 0:01:54]} 20. Qd3 {[%emt 0:04:43]} g6 {[%emt 0:04:07]} 21. Bf4 {[%emt 0:04:45][%cal Rf4d6]} Nd4 {[%emt 0:10:02]} 22. Ba4 {[%emt 0:11:03]} Re6 {[%emt 0:01:37]} (22... Bd7 $11 23. Bxd7 Nxd7) 23. Be3 $1 $16 {[%emt 0:06:30]} Nc6 {[%emt 0:02:32]} 24. Qd2 {[%emt 0:06:21]} Kh7 {[%emt 0:01:47]} 25. Bc2 {[%emt 0:01:07]} (25. Bxc6 $16 Qxc6 26. Ng4) 25... h5 {[%emt 0:04:27]} (25... Bb7 $11) 26. Nf3 {[%emt 0:01:57]} Kg8 {[%emt 0:04:54]} 27. Ng5 {[%emt 0:05:13]} Re8 {[%emt 0:00:29]} 28. f4 {[%emt 0:02:16]} Bb7 {[%emt 0:02:42][%cal Oc6d4]} 29. Qf2 {[%emt 0:01:33]} (29. e5 $142 $1 {[%cal Re5f6]} dxe5 30. f5 gxf5 31. Nxf5) 29... Bg7 {[%emt 0:03:25]} (29... Nd4 $16) 30. Bb1 $2 {[%emt 0:04:24]} (30. e5 $1 $18 {[%cal Re5f6]} dxe5 31. f5) 30... Rad8 {[%emt 0:01:46]} (30... Nd4 $16) 31. Nf1 {[%emt 0:00:33]} ({White should try} 31. e5 $1 $18 {[%cal Re5f6]} dxe5 32. f5) 31... Nh7 $14 {[%emt 0:06:53]} 32. Nxh7 {[%emt 0:09:53]} Kxh7 {[%emt 0:00:02]} 33. Ng3 {[%emt 0:04:31][%cal Oe4e5]} Qe7 $2 {[%emt 0:06:14] Against e5} (33... Nd4 $14) 34. e5 $1 $18 {[%emt 0:03:35]} dxe5 {[%emt 0:02:23]} (34... Kg8 {keeps fighting.} 35. Ne4 Nd4) 35. Nxh5 $2 {[%emt 0:07:43] [#]} (35. Bxc5 Qh4 $16) (35. f5 $18 Rxd1 36. fxg6+ Kg8 37. Rxd1) 35... exf4 $1 $17 {[%emt 0:03:05]} 36. Bxc5 {[%emt 0:00:38]} Qg5 $36 {[%emt 0:00:49][%mdl 2048] Black has good play.} 37. Nxg7 {[%emt 0:01:01]} Kxg7 {[%emt 0:01:02]} 38. h4 {[%emt 0:01:03] [#]} Rxd1 $1 {[%emt 0:04:32]} 39. Rxd1 {[%emt 0:00:10]} Qg4 {[%emt 0:01:22]} 40. Rf1 {[%emt 0:00:00][%mdl 8192] [#]} (40. Re1 $17 Rxe1+ 41. Qxe1) 40... Ne5 $1 $19 {[%emt 0:00:00] White must now prevent ...Nf3+. Black is clearly winning.} ({And not} 40... Re2 41. Qf3 Qxf3 42. Rxf3 $17) 41. Bd4 {[%emt 0:07:34]} f6 {[%emt 0:08:40] ( -> ...Nf3+)} 42. Bxe5 {[%emt 0:02:44]} Rxe5 {[%emt 0:00:16]} ({Weaker is} 42... fxe5 43. Bc2 $17) 43. Bd3 {[%emt 0:00:41] Prevents Re2.} Re3 {[%emt 0:00:15] What a bad dream for White.  Weighted Error Value: White=0.70/Black=0.33} 0-1

[Event "VII Totalizator Sportowy 2022"]
[Site "Bydgoszcz"]
[Date "2022.07.01"]
[Round "7.13"]
[White "Navaratnam, Rohan Shan Tze"]
[Black "Rudzinska, Michalina"]
[Result "1/2-1/2"]
[ECO "E10"]
[WhiteElo "2071"]
[BlackElo "2236"]
[Annotator "TA"]
[PlyCount "121"]
[EventDate "2022.06.25"]
[EventType "swiss"]
[EventCountry "POL"]
[SourceTitle "playchess.com"]
[Source "ChessBase"]
[SourceQuality "1"]
[TimeControl "40/5400+30:1800+30"]

{[%evp 13,121,0,9,5,0,8,0,0,0,0,0,0,14,4,24,22,19,-10,7,-29,-31,-18,0,0,-3,-11,131,144,141,52,60,60,74,93,93,62,100,98,150,92,91,91,94,64,127,125,98,35,17,12,17,21,20,0,0,0,31,0,10,0,18,50,451,0,18,0,0,0,0,0,0,0,0,0,0,0,0,0,0,0,0,-29,0,0,0,0,0,0,0,0,0,0,0,0,0,0,0,0,0,0,0,0,0,0,0,0,0,0,0,0]} 1. d4 {[%emt 0:00:10]} Nf6 {[%emt 0:00:09]} 2. c4 {[%emt 0:00:06]} e6 {[%emt 0:00:10]} 3. Nf3 {[%emt 0:00:09]} c5 {[%emt 0:00:09]} 4. Nc3 {[%emt 0:00:11]} cxd4 {[%emt 0:00:11]} 5. Nxd4 {[%emt 0:00:05]} d5 {[%emt 0:00:46]} 6. cxd5 {[%emt 0:13:15]} Nxd5 {[%emt 0:01:21]} 7. Bd2 {[%emt 0:04:07]} Be7 {[%emt 0:04:40]} 8. e4 {[%emt 0:02:11] A32: Symmetrical English: 2 Nf3 Nf6 3 d4 cxd4 4 Nxd4 e6.} Nxc3 {[%emt 0:00:07]} 9. Bxc3 {[%emt 0:00:10]} O-O {[%emt 0:00:11]} 10. Bd3 {[%emt 0:06:18]} Qb6 {[%emt 0:06:18]} 11. O-O {[%emt 0:04:19]} Rd8 {[%emt 0:01:31] [#]} 12. Nf3 $146 {[%emt 0:01:21]} ({Predecessor:} 12. Rc1 Bd7 13. Qh5 Be8 14. Rfd1 Nc6 15. Nxc6 Bxc6 16. Qg4 Bf8 17. h4 Rd7 18. h5 {0-1 (55) Ivanchuk,V (2678)-Carlsen,M (2864) Tornelo INT 2022}) 12... Nc6 {[%emt 0:01:49]} 13. Qe2 {[%emt 0:01:05]} Nb4 {[%emt 0:05:16]} 14. Bc4 {[%emt 0:00:54]} Nc6 {[%emt 0:17:16]} 15. h4 {[%emt 0:07:03]} Bb4 {[%emt 0:14:27]} 16. h5 {[%emt 0:12:49][%cal Oh5h6]} Bxc3 {[%emt 0:01:17]} 17. bxc3 {[%emt 0:01:21]} Qc5 {[%emt 0:01:42]} 18. e5 {[%emt 0:01:25]} Bd7 {[%emt 0:07:44]} 19. Qe4 {[%emt 0:05:50]} h6 {[%emt 0:11:57] [#]} (19... Ne7 $1 $11) 20. Bd3 $1 $16 {[%emt 0:04:10] aiming for Qh7+.} Kf8 {[%emt 0:00:10]} 21. Rab1 {[%emt 0:07:30]} (21. Rae1 $16) 21... Qd5 $1 $14 {[%emt 0:07:26]} 22. Rxb7 {[%emt 0:05:28]} Bc8 {[%emt 0:02:22]} 23. Rc7 {[%emt 0:00:05] White is much more active.} Qxd3 {[%emt 0:03:29]} 24. Qxc6 {[%emt 0:00:02]} Qd5 {[%emt 0:07:21]} 25. Qa4 {[%emt 0:06:50]} a5 {[%emt 0:01:34]} (25... Bd7 $142 26. Qa3+ (26. Qf4 Rdc8 $14) 26... Kg8) 26. Qa3+ {[%emt 0:01:54]} ({Better is} 26. c4 Qd3 27. c5 (27. Qc6 Rb8 $16)) 26... Kg8 $16 {[%emt 0:00:05]} 27. Qe7 {[%emt 0:00:31]} Rf8 {[%emt 0:00:56]} 28. c4 {[%emt 0:00:42]} Qd3 {[%emt 0:00:31]} (28... Qe4 $1 $14) 29. Qd6 {[%emt 0:02:52]} Qc2 {[%emt 0:02:05]} 30. Rd1 $40 {[%emt 0:00:20][%mdl 128] White attacks.} (30. Qd2 $16 Qa4 31. Rc1) 30... Ba6 $14 {[%emt 0:00:13]} 31. Rd2 {[%emt 0:00:20]} Qb1+ {[%emt 0:00:41]} 32. Kh2 {[%emt 0:00:17]} Qf5 {[%emt 0:00:08]} 33. Rd1 {[%emt 0:08:54]} Qxh5+ {[%emt 0:00:10]} 34. Kg1 {[%emt 0:00:01]} Qf5 {[%emt 0:01:46]} 35. Qc6 {[%emt 0:00:03]} (35. Nd4 $5 {[%cal Rd4f5]} Qg5 36. Nf3 $11) 35... Qc2 {[%emt 0:00:41]} 36. Rd2 {[%emt 0:01:37]} Qc1+ {[%emt 0:01:05]} 37. Kh2 {[%emt 0:00:02]} Rfd8 $2 {[%emt 0:00:44][%mdl 8192] [#]} (37... Rad8 $14) 38. Rxd8+ $2 {[%emt 0:04:08]} ({White should try} 38. Ra7 $3 $18 {[%mdl 512]} Rab8 39. Rxd8+ Rxd8 40. Rxa6) 38... Rxd8 $11 {[%emt 0:00:01]} 39. Qxa6 {[%emt 0:00:38]} Qf4+ {[%emt 0:00:06]} 40. Kh3 {[%emt 0:00:00]} Qf5+ {[%emt 0:00:00]} (40... g5 $5 41. Rc8 g4+ 42. Kh4 Rxc8 43. Qxc8+ Kg7 $11) 41. Kg3 {[%emt 0:01:18]} g5 {[%emt 0:19:35][%cal Bg7g5,Bg5g4][%mdl 32]} 42. Rc8 {[%emt 0:00:35]} (42. Qxa5 {gets mated.} Qf4+ 43. Kh3 g4+ 44. Kh4 gxf3+ 45. Kh3 Rd1 46. Qa8+ Kg7) 42... Qf4+ {[%emt 0:00:05]} 43. Kh3 {[%emt 0:00:03]} g4+ {[%emt 0:00:05]} 44. Kh4 {[%emt 0:00:03]} gxf3+ {[%emt 0:00:06]} 45. Kh3 {[%emt 0:00:04]} Rxc8 {[%emt 0:00:13]} 46. Qxc8+ {[%emt 0:00:07][%mdl 4096] Endgame KQ-KQ} Kg7 {[%emt 0:01:09]} 47. Qc5 {[%emt 0:02:45]} h5 {[%emt 0:02:38]} 48. gxf3 {[%emt 0:01:21] The position is equal.} Qxf3+ {[%emt 0:00:03]} 49. Kh2 {[%emt 0:00:01]} Qf4+ {[%emt 0:00:45]} 50. Kg2 {[%emt 0:01:18]} Kg6 {[%emt 0:05:42]} 51. Qxa5 {[%emt 0:06:00]} Qxc4 {[%emt 0:00:14]} 52. Qa3 {[%emt 0:00:58]} h4 {[%emt 0:02:50]} 53. Qf3 {[%emt 0:03:43] Threatens to win with Qf6+.} Qxa2 {[%emt 0:00:26] ( -> ...Qd5)} 54. Qf6+ {[%emt 0:00:46]} Kh5 {[%emt 0:00:36]} 55. Qxf7+ {[%emt 0:01:45]} Kg5 {[%emt 0:00:27]} 56. Qf6+ {[%emt 0:00:06]} Kh5 {[%emt 0:00:16]} 57. Kh3 {[%emt 0:03:05]} Qc4 {[%emt 0:00:08]} 58. Qf3+ {[%emt 0:00:18]} Kg5 {[%emt 0:00:20]} 59. Qf6+ {[%emt 0:00:13]} Kh5 {[%emt 0:00:05]} 60. Qh8+ {[%emt 0:00:20]} Kg5 {[%emt 0:00:08] White must now prevent ...Qf1+.} 61. Qf6+ {[%emt 0:00:13] Weighted Error Value: White=0.24 (precise) /Black=0.24 (precise)} 1/2-1/2

[Event "VII Totalizator Sportowy 2022"]
[Site "Bydgoszcz"]
[Date "2022.07.01"]
[Round "7.14"]
[White "Sernecki, Franciszek"]
[Black "Jarocka, Liwia"]
[Result "1-0"]
[ECO "A19"]
[WhiteElo "2272"]
[BlackElo "2006"]
[Annotator "TA"]
[PlyCount "171"]
[EventDate "2022.06.25"]
[EventType "swiss"]
[EventCountry "POL"]
[SourceTitle "playchess.com"]
[Source "ChessBase"]
[SourceQuality "1"]
[TimeControl "40/5400+30:1800+30"]

{[%evp 11,171,8,13,6,14,14,45,37,54,42,45,35,75,80,85,94,104,110,103,102,94,90,88,89,78,56,59,35,60,32,85,85,93,66,101,104,131,138,132,91,95,98,81,88,81,71,160,156,291,249,339,365,351,239,239,239,239,239,239,238,238,238,243,216,216,215,404,333,404,333,428,428,411,0,404,404,404,404,404,404,404,404,404,402,404,404,404,388,404,340,404,404,404,404,404,404,426,404,426,404,426,426,428,404,404,404,404,318,384,384,404,404,404,265,266,265,421,420,420,420,428,420,420,420,448,448,448,0,421,420,428,428,428,428,428,0,428,428,428,420,420,420,420,420,420,420,420,420,420,420,580,420,29989,29990,29990,29991,29993,29993,29993,29994,29994,29995]} 1. c4 {[%emt 0:00:45]} Nf6 {[%emt 0:00:18]} 2. Nc3 {[%emt 0:00:06]} e6 {[%emt 0:00:06]} 3. e4 {[%emt 0:00:57][%cal Be2e4,Be4e5][%mdl 32]} c5 {[%emt 0:00:06]} 4. e5 {[%emt 0:02:01]} Ng8 {[%emt 0:00:07]} 5. d4 {[%emt 0:00:06]} cxd4 {[%emt 0:00:06]} 6. Qxd4 {[%emt 0:00:13]} Nc6 {[%emt 0:00:10]} 7. Qf4 {[%emt 0:00:21] A19: English Opening: Flohr-Mikenas System with 3...c5.} d6 {[%emt 0:00:18]} 8. Nf3 {[%emt 0:00:23]} dxe5 {[%emt 0:04:25]} 9. Nxe5 {[%emt 0:00:25][%csl Ge5][%cal Rf4f7] [#] White is slightly better.} Nf6 {[%emt 0:06:48]} 10. Nxc6 {[%emt 0:08:46]} bxc6 {[%emt 0:00:04] [#]} 11. Be2 $146 {[%emt 0:10:47]} (11. Qg3 $5 {[%cal Rf1e2]}) ({Predecessor:} 11. Qf3 Bb7 12. Bf4 Bb4 13. Bd3 Qe7 14. Be5 Nd7 15. Bxg7 Rg8 16. Bd4 Qd6 17. O-O-O Qxd4 18. Bxh7 {½-½ (53) Esipenko,A (2654)-Krejci,J (2559) Prague 2020}) 11... Be7 {[%emt 0:04:28]} 12. O-O {[%emt 0:05:15]} Bb7 {[%emt 0:02:22]} 13. Rd1 {[%emt 0:07:24]} Qb8 {[%emt 0:01:44]} 14. Qxb8+ {[%emt 0:09:11]} Rxb8 {[%emt 0:00:07]} 15. Be3 {[%emt 0:03:53]} a5 {[%emt 0:09:23]} 16. Bf4 {[%emt 0:06:04] White is much more active. The black rooks are badly placed.} Rc8 {[%emt 0:08:18]} 17. Na4 {[%emt 0:08:03]} c5 {[%emt 0:05:14]} 18. Nc3 {[%emt 0:04:00]} O-O {[%emt 0:01:12]} 19. Nb5 {[%emt 0:01:09]} a4 {[%emt 0:18:28]} 20. Nd6 {[%emt 0:06:28]} Bxd6 {[%emt 0:04:54]} (20... Rb8 $1 $14) 21. Rxd6 $16 {[%emt 0:02:53]} Bc6 {[%emt 0:03:33]} 22. f3 {[%emt 0:03:40]} Rfe8 {[%emt 0:01:40]} 23. Be3 {[%emt 0:01:43]} h6 {[%emt 0:02:44]} 24. Rad1 {[%emt 0:04:20]} e5 {[%emt 0:04:11]} 25. Bxc5 {[%emt 0:01:37]} Bxf3 {[%emt 0:00:54]} 26. gxf3 {[%emt 0:00:56]} ({But not} 26. Bxf3 Rxc5 27. Bc6 Re7 $14) 26... Rxc5 {[%emt 0:00:13]} 27. b4 {[%emt 0:00:07]} axb3 {[%emt 0:00:14]} 28. axb3 {[%emt 0:00:06][%cal Ba2b3,Bb3b4][%mdl 32]} Rcc8 {[%emt 0:03:55]} (28... e4 $142) 29. b4 {[%emt 0:01:03]} e4 {[%emt 0:00:06]} (29... Rb8 $16 {was worth a try.}) 30. c5 $18 {[%emt 0:00:57] Black must now prevent c6.} exf3 {[%emt 0:02:58]} 31. Bxf3 {[%emt 0:00:48]} Kh7 {[%emt 0:00:14]} 32. Bb7 {[%emt 0:01:31]} Rc7 {[%emt 0:00:14]} 33. c6 {[%emt 0:00:43]} Re5 {[%emt 0:00:16] [#]} 34. Rd7 $1 {[%emt 0:07:01][%mdl 512]} Nxd7 {[%emt 0:02:21]} 35. cxd7 {[%emt 0:00:02]} Rxb7 {[%emt 0:03:03]} 36. d8=Q {[%emt 0:00:08] Prevents Rb8.} Rg5+ {[%emt 0:00:07]} 37. Kf1 {[%emt 0:02:25]} Rxb4 {[%emt 0:00:19]} 38. Qd3+ {[%emt 0:00:18]} f5 $2 {[%emt 0:00:56]} (38... g6 39. Rd2 Ra4) 39. Qf3 {[%emt 0:01:12]} Rh4 {[%emt 0:05:24]} 40. Rd2 {[%emt 0:00:00]} Rgh5 {[%emt 0:00:00]} 41. Rd7 {[%emt 0:07:19]} Rg5 {[%emt 0:06:50]} 42. Rd2 {[%emt 0:05:23]} Rgh5 {[%emt 0:01:07]} 43. Qg3 {[%emt 0:01:43]} Rg4 {[%emt 0:01:23]} 44. Qe5 {[%emt 0:02:15]} Re4 {[%emt 0:04:46]} 45. Qc7 {[%emt 0:00:26]} Rg5 {[%emt 0:00:34]} 46. Rf2 {[%emt 0:01:47]} Reg4 {[%emt 0:05:58]} 47. Qb7 {[%emt 0:05:28]} Rg1+ {[%emt 0:04:06]} 48. Ke2 {[%emt 0:00:01]} R1g4 {[%emt 0:00:10]} 49. Kd3 {[%emt 0:01:20]} Rh4 {[%emt 0:00:42]} 50. Qd7 {[%emt 0:00:41]} Rhh5 {[%emt 0:00:28]} 51. Qf7 {[%emt 0:02:20]} Rh3+ {[%emt 0:00:56]} 52. Kd4 {[%emt 0:01:09]} Rh4+ {[%emt 0:01:43]} 53. Kc5 {[%emt 0:03:08]} Rhh5 {[%emt 0:00:18]} 54. Kd5 {[%emt 0:01:44]} Rh4 {[%emt 0:00:57]} 55. Qd7 {[%emt 0:01:15] Inhibits Ra4.} Rh3 {[%emt 0:00:34] aiming for ...Rd3+.} 56. Ke6 {[%emt 0:02:05]} Rg6+ {[%emt 0:04:23]} 57. Ke5 {[%emt 0:00:37]} Re3+ {[%emt 0:00:26]} 58. Kd4 {[%emt 0:01:09]} Ree6 {[%emt 0:00:25]} 59. Kd5 {[%emt 0:00:20] Prevents Rd6+.} Ref6 {[%emt 0:01:22]} 60. Ke5 {[%emt 0:00:56]} Rg5 {[%emt 0:00:33]} 61. h4 {[%emt 0:00:39]} Rg1 {[%emt 0:01:23]} 62. Qd3 {[%emt 0:01:19]} ({And not} 62. Rxf5 Re1+ 63. Kf4 Rf1+ 64. Kg4 R6xf5 65. Qxf5+ Rxf5 66. Kxf5 g6+ 67. Ke5 Kg7 $11) 62... Re1+ {[%emt 0:00:15]} 63. Kf4 {[%emt 0:00:21] Kf3 is the strong threat.} Rg1 {[%emt 0:00:37]} (63... Rh1 {was necessary.} 64. Ke3 Kh8) 64. Kf3 {[%emt 0:00:39]} Rg4 {[%emt 0:00:22]} 65. Rh2 {[%emt 0:00:26]} Re4 {[%emt 0:00:11]} 66. Qd7 {[%emt 0:00:31] Inhibits Rc6.} Rg4 {[%emt 0:00:18]} 67. Rh1 {[%emt 0:00:17]} Re4 {[%emt 0:02:52]} 68. Rg1 {[%emt 0:00:06][%csl Gg1][%cal Rd7g7]} Rg4 {[%emt 0:00:04]} 69. Rh1 {[%emt 0:00:13]} Re4 $1 {[%emt 0:00:03]} 70. Qd5 {[%emt 0:00:13]} Ree6 {[%emt 0:00:25]} 71. Rc1 {[%emt 0:01:26] Hoping for Rc8.} Rd6 {[%emt 0:00:22]} 72. Qb5 {[%emt 0:00:35]} Rb6 {[%emt 0:00:07]} 73. Qd5 {[%emt 0:00:08]} Rbd6 $1 {[%emt 0:00:06]} 74. Qe5 {[%emt 0:00:16]} Rde6 {[%emt 0:00:06]} 75. Qb8 {[%emt 0:00:31] Strongly threatening Rc8.} Rb6 {[%emt 0:00:08]} 76. Qf4 {[%emt 0:00:44]} Rb3+ {[%emt 0:00:40]} 77. Kf2 {[%emt 0:00:04]} Rb2+ {[%emt 0:00:05]} 78. Kf1 {[%emt 0:00:07]} Rbb6 {[%emt 0:00:19]} 79. Re1 {[%emt 0:00:38]} Ra6 {[%emt 0:02:31]} 80. h5 {[%emt 0:01:19]} Ra7 {[%emt 0:00:31]} 81. Qb8 {[%emt 0:00:35]} Ra4 {[%emt 0:01:53]} (81... Rfa6 $18 82. Qf8 Ra5) 82. Re8 {[%emt 0:00:27][%csl Gb8][%cal Re8h8] White mates.} Ra1+ {[%emt 0:00:21]} 83. Ke2 {[%emt 0:00:21][%csl Gb8][%cal Re8h8]} Ra2+ {[%emt 0:00:03]} 84. Kd3 {[%emt 0:00:34][%csl Gb8][%cal Re8h8]} Ra3+ {[%emt 0:01:11]} 85. Kc2 {[%emt 0:00:30][%csl Gb8][%cal Re8h8]} Rc6+ {[%emt 0:00:08]} 86. Kb2 {[%emt 0:00:05] Weighted Error Value: White=0.19 (very precise) /Black=0.22 (precise)} 1-0